bitfinex-derivatives/quotes_BTCF0:USTF0_20250527
["timestamp","ask_amount","ask_price","bid_price","bid_amount"]
[1748311588060,0.00836,108460.0,108450.0,1.85283985]
[1748311588265,0.00013815,108470.0,108460.0,0.1843521]
[1748311588563,0.00013815,108470.0,108460.0,1.88174258]
[1748311588753,0.00025815,108470.0,108460.0,1.89555206]
[1748311589257,0.00525815,108470.0,108460.0,1.54044968]
[1748311589960,0.00525815,108470.0,108460.0,1.52044968]
[1748311590160,0.00025815,108470.0,108460.0,1.54044968]
[1748311590459,0.00025815,108470.0,108460.0,1.61264568]
[1748311590653,0.00425815,108470.0,108460.0,1.93274939]
[1748311590850,0.00425815,108470.0,108460.0,1.64274939]
[1748311591050,0.00425815,108470.0,108460.0,2.00354939]
[1748311591257,0.00125815,108470.0,108460.0,2.00554939]
[1748311591658,0.00125815,108470.0,108460.0,1.98554939]
[1748311592261,0.00125815,108470.0,108460.0,2.31554939]
[1748311592558,0.00125815,108470.0,108460.0,2.14554939]
[1748311592857,0.00125815,108470.0,108460.0,2.32554939]
[1748311593164,0.00125815,108470.0,108460.0,2.47050939]
[1748311593354,0.24849325,108470.0,108460.0,1.89291339]
[1748311593652,0.30759325,108470.0,108460.0,1.89291339]
[1748311593854,0.18205815,108470.0,108460.0,1.88771425]
[1748311594659,0.18205815,108470.0,108460.0,2.13771425]
[1748311595058,0.18644997,108470.0,108460.0,2.13771425]
[1748311595353,0.18644997,108470.0,108460.0,2.13381321]
[1748311596560,0.18644997,108470.0,108460.0,2.13443208]
[1748311596959,0.18644997,108470.0,108460.0,2.13963687]
[1748311597160,0.18205815,108470.0,108460.0,2.13963687]
[1748311597662,0.18205815,108470.0,108460.0,1.77883687]
[1748311598057,0.18644997,108470.0,108460.0,1.77883687]
[1748311598763,0.18644997,108470.0,108460.0,1.63600807]
[1748311599765,0.18644997,108470.0,108460.0,1.38600807]
[1748311600064,0.18205815,108470.0,108460.0,1.38600807]
[1748311600865,0.36639325,108470.0,108460.0,0.61388807]
[1748311601058,0.83618976,108470.0,108460.0,0.45869578]
[1748311601255,0.83618976,108470.0,108460.0,0.33869578]
[1748311601965,0.72719325,108470.0,108460.0,0.33869578]
[1748311602271,0.83618976,108470.0,108460.0,0.33869578]
[1748311602565,0.83618976,108470.0,108460.0,0.15434368]
[1748311602870,1.24742976,108470.0,108460.0,0.14523774]
[1748311603271,1.24742976,108470.0,108460.0,0.32958984]
[1748311603768,1.25653844,108470.0,108460.0,0.32958984]
[1748311603971,1.25641844,108470.0,108460.0,0.32958984]
[1748311604172,1.25653844,108470.0,108460.0,0.32958984]
[1748311605171,1.26093026,108470.0,108460.0,0.32958984]
[1748311605669,1.15181375,108470.0,108460.0,0.32958984]
[1748311605976,1.26093026,108470.0,108460.0,0.32958984]
[1748311606871,1.25182158,108470.0,108460.0,0.32958984]
[1748311608276,1.26080672,108470.0,108460.0,0.32958984]
[1748311608472,1.26080672,108470.0,108460.0,0.14523774]
[1748311608774,1.26180672,108470.0,108460.0,0.14123774]
[1748311609773,1.26180672,108470.0,108460.0,0.32558974]
[1748311609976,1.26180672,108470.0,108460.0,0.14123774]
[1748311610676,1.26180672,108470.0,108460.0,0.32558974]
[1748311610974,1.26168672,108470.0,108460.0,0.32558974]
[1748311611275,1.26180672,108470.0,108460.0,0.32558974]
[1748311612276,1.2574149,108470.0,108460.0,0.32558974]
[1748311613477,1.6722549,108470.0,108460.0,0.32558974]
[1748311613678,1.6723749,108470.0,108460.0,0.32558974]
[1748311613975,1.24842976,108470.0,108460.0,0.32558974]
[1748311614181,1.66338976,108470.0,108460.0,0.32558974]
[1748311617873,1.67261615,108470.0,108460.0,0.32558974]
[1748311619981,1.31181615,108470.0,108460.0,0.32558974]
[1748311620184,2.03341615,108470.0,108460.0,0.32558974]
[1748311621077,2.03341615,108470.0,108460.0,0.33940974]
[1748311622183,2.03341615,108470.0,108460.0,0.15505774]
[1748311622578,2.03341615,108470.0,108460.0,0.01505774]
[1748311623379,2.03780797,108470.0,108460.0,0.01505774]
[1748311624687,2.18080828,108470.0,108460.0,0.01505774]
[1748311626092,2.18080828,108470.0,108460.0,0.11505774]
[1748311626585,2.17641646,108470.0,108460.0,0.11505774]
[1748311627485,1.24121995,108470.0,108460.0,0.29940984]
[1748311627680,0.32605846,108470.0,108460.0,0.51840635]
[1748311627884,0.92527356,108470.0,108460.0,0.63570635]
[1748311628187,1.39519007,108470.0,108460.0,0.29940984]
[1748311628387,1.03439007,108470.0,108460.0,0.29940984]
[1748311628688,1.14319325,108470.0,108460.0,0.30331099]
[1748311628886,1.14319325,108470.0,108460.0,0.39181099]
[1748311630078,1.14319325,108470.0,108460.0,0.39701578]
[1748311630280,1.25218976,108470.0,108460.0,0.39701578]
[1748311630987,1.14319325,108470.0,108460.0,0.39701578]
[1748311631784,0.72819325,108470.0,108460.0,0.39701578]
[1748311632085,1.14319325,108470.0,108460.0,0.42581578]
[1748311632683,1.14319325,108470.0,108460.0,0.42191463]
[1748311633480,0.72819325,108470.0,108460.0,0.42191463]
[1748311633691,0.78239325,108470.0,108460.0,0.42191463]
[1748311633889,0.78227325,108470.0,108460.0,0.42191463]
[1748311634183,1.14319325,108470.0,108460.0,0.42191463]
[1748311634989,1.14319325,108470.0,108460.0,0.30461463]
[1748311634990,1.25218976,108470.0,108460.0,0.30461463]
[1748311635890,1.25218976,108470.0,108460.0,0.30331446]
[1748311637189,1.14319325,108470.0,108460.0,0.41331446]
[1748311637391,1.14307325,108470.0,108460.0,0.49801446]
[1748311637593,1.14319325,108470.0,108460.0,0.49801446]
[1748311637890,0.72819325,108470.0,108460.0,0.49801446]
[1748311638093,0.89971815,108470.0,108460.0,0.49801446]
[1748311638286,0.66909325,108470.0,108460.0,0.52691446]
[1748311638783,1.08405325,108470.0,108460.0,0.52691446]
[1748311638982,0.48475815,108470.0,108460.0,0.53211925]
[1748311639288,0.89971815,108470.0,108460.0,0.64111576]
[1748311639489,1.08393325,108470.0,108460.0,0.64111576]
[1748311639788,1.08405325,108470.0,108460.0,0.64111576]
[1748311640291,0.61029325,108470.0,108460.0,0.64111576]
[1748311640490,1.02525325,108470.0,108460.0,0.64111576]
[1748311640695,0.66445325,108470.0,108460.0,0.64111576]
[1748311641388,0.83334976,108470.0,108460.0,0.50321925]
[1748311641585,1.19414976,108470.0,108460.0,0.50321925]
[1748311641789,1.19414976,108470.0,108460.0,0.39321925]
[1748311641990,1.19414976,108470.0,108460.0,0.52321925]
[1748311642295,1.19414976,108470.0,108460.0,0.39321925]
[1748311642497,1.19414976,108470.0,108460.0,0.4397208]
[1748311642698,1.19414976,108470.0,108460.0,0.5597208]
[1748311643000,1.19414976,108470.0,108460.0,0.66871731]
[1748311643001,0.12505815,108470.0,108460.0,0.66871731]
[1748311643198,0.54001815,108470.0,108460.0,0.66871731]
[1748311643389,0.72423325,108470.0,108460.0,0.66871731]
[1748311643590,0.72435325,108470.0,108460.0,0.66871731]
[1748311644398,0.72435325,108470.0,108460.0,1.02951731]
[1748311645800,0.83334976,108470.0,108460.0,0.8358208]
[1748311645993,0.83334976,108470.0,108460.0,0.78931925]
[1748311646993,0.83334976,108470.0,108460.0,0.78411446]
[1748311648400,0.72435325,108470.0,108460.0,0.78411446]
[1748311649307,1.08515325,108470.0,108460.0,0.42331446]
[1748311650701,0.72435325,108470.0,108460.0,0.42331446]
[1748311651708,1.08515325,108470.0,108460.0,0.42331446]
[1748311652101,1.19414976,108470.0,108460.0,0.42331446]
[1748311653199,0.67019325,108470.0,108460.0,0.42331446]
[1748311653399,1.08515325,108470.0,108460.0,0.42331446]
[1748311654200,0.72435325,108470.0,108460.0,0.42331446]
[1748311654402,0.72423325,108470.0,108460.0,0.42331446]
[1748311654609,0.72435325,108470.0,108460.0,0.42331446]
[1748311654909,0.72435325,108470.0,108460.0,0.42851925]
[1748311655107,1.08515325,108470.0,108460.0,0.42851925]
[1748311656609,1.08515325,108470.0,108460.0,0.42461463]
[1748311657614,1.19414976,108470.0,108460.0,0.42461463]
[1748311657814,1.19414976,108470.0,108460.0,0.30461463]
[1748311659218,1.19414976,108470.0,108460.0,0.31241682]
[1748311660718,1.19414976,108470.0,108460.0,0.30461463]
[1748311662220,1.60434976,108470.0,108460.0,0.30852672]
[1748311664119,1.24354976,108470.0,108460.0,0.30852672]
[1748311664321,1.60434976,108470.0,108460.0,0.30332193]
[1748311664818,1.60434976,108470.0,108460.0,0.11896983]
[1748311665814,1.66169172,108470.0,108460.0,0.11896983]
[1748311667415,1.66169172,108470.0,108460.0,0.11505774]
[1748311669716,1.86288423,108470.0,108460.0,0.11505774]
[1748311669918,1.75388772,108470.0,108460.0,0.01505774]
[1748311670631,1.78220411,108470.0,108460.0,0.01505774]
[1748311671018,1.78659593,108470.0,108460.0,0.01505774]
[1748311673023,1.84408867,108470.0,108460.0,0.01505774]
[1748311673428,0.1843691,108450.0,108440.0,0.0055535]
[1748311673628,1.94920212,108450.0,108440.0,0.1455535]
[1748311673825,2.07440212,108450.0,108440.0,0.1455535]
[1748311674620,2.07440212,108450.0,108440.0,0.14417024]
[1748311674830,2.08341785,108450.0,108440.0,0.14025815]
[1748311675124,2.08441785,108450.0,108440.0,0.04765815]
[1748311675325,0.1843862,108440.0,108430.0,0.00911688]
[1748311675526,0.71478271,108440.0,108430.0,0.11911688]
[1748311675925,0.71478271,108440.0,108430.0,0.11]
[1748311676725,0.71678271,108440.0,108430.0,0.11112]
[1748311677020,0.73089686,108440.0,108430.0,0.111]
[1748311677221,0.73089686,108440.0,108430.0,0.11112]
[1748311677424,0.71678271,108440.0,108430.0,0.11112]
[1748311677828,0.91799922,108440.0,108430.0,0.00112]
[1748311678022,0.81200271,108440.0,108430.0,0.001]
[1748311678417,0.93970271,108440.0,108430.0,0.001]
[1748311678820,0.1844031,108430.0,108420.0,0.01011808]
[1748311679025,1.71591612,108430.0,108420.0,0.02011808]
[1748311679226,1.71591612,108430.0,108420.0,0.02023808]
[1748311679524,1.71591612,108430.0,108420.0,0.02011808]
[1748311679833,1.71591612,108430.0,108420.0,0.02023808]
[1748311680325,1.71891612,108430.0,108420.0,0.02023808]
[1748311680529,1.81114412,108430.0,108420.0,0.02023808]
[1748311681026,1.81214412,108430.0,108420.0,0.02011808]
[1748311681229,1.81214412,108430.0,108420.0,0.02023808]
[1748311681425,0.7688311,108430.0,108420.0,0.02023808]
[1748311681634,0.7688311,108430.0,108420.0,0.20465828]
[1748311681635,0.6766031,108430.0,108420.0,0.20465828]
[1748311681928,1.20079961,108430.0,108420.0,0.32815828]
[1748311682228,1.56359961,108430.0,108420.0,0.02123808]
[1748311682435,1.56659961,108430.0,108420.0,0.02111808]
[1748311682624,1.56659961,108430.0,108420.0,0.02123808]
[1748311682825,1.56359961,108430.0,108420.0,0.02123808]
[1748311683127,0.1844372,108410.0,108400.0,0.0593]
[1748311683328,1.97959279,108410.0,108400.0,0.0691295]
[1748311683525,2.24155369,108410.0,108400.0,0.0691295]
[1748311683726,2.24155369,108410.0,108400.0,0.0692495]
[1748311683926,2.24155369,108410.0,108400.0,0.0691295]
[1748311684225,2.24155369,108410.0,108400.0,0.0692495]
[1748311684438,2.24155369,108410.0,108400.0,0.00012]
[1748311684627,0.1844542,108400.0,108390.0,0.01013011]
[1748311684825,0.95191786,108400.0,108390.0,0.01013011]
[1748311685026,1.04417386,108400.0,108390.0,0.01013011]
[1748311685230,1.04417386,108400.0,108390.0,0.00113323]
[1748311685424,1.04417386,108400.0,108390.0,0.00101323]
[1748311685626,1.04417386,108400.0,108390.0,0.00012]
[1748311685938,0.1844882,108380.0,108370.0,0.2767488]
[1748311686135,1.47970117,108380.0,108370.0,0.40650057]
[1748311686335,1.66817181,108380.0,108370.0,0.36037447]
[1748311686532,1.66817181,108380.0,108370.0,0.3144986]
[1748311687135,1.66817181,108380.0,108370.0,0.3146186]
[1748311687332,1.66917181,108380.0,108370.0,0.13112]
[1748311687533,1.66917181,108380.0,108370.0,0.131]
[1748311687827,2.02997181,108380.0,108370.0,0.13412]
[1748311688031,2.02997181,108380.0,108370.0,0.134]
[1748311688227,2.02997181,108380.0,108370.0,0.13412]
[1748311688428,0.3744553,108380.0,108370.0,0.3186252]
[1748311688631,0.0018671,108380.0,108370.0,1.07802171]
[1748311688822,0.36093815,108390.0,108380.0,0.1844882]
[1748311689022,0.36093815,108390.0,108380.0,0.59228471]
[1748311689235,0.36093815,108390.0,108380.0,0.65598471]
[1748311689435,0.41533815,108390.0,108380.0,1.01678471]
[1748311689735,0.59980935,108390.0,108380.0,1.01678471]
[1748311690435,0.00113815,108390.0,108380.0,1.01778471]
[1748311690732,0.36218476,108400.0,108380.0,1.01778471]
[1748311690733,0.23195886,108400.0,108390.0,0.1844712]
[1748311690930,0.64691063,108400.0,108390.0,0.56226766]
[1748311691130,0.64691063,108400.0,108390.0,0.45226766]
[1748311692833,0.64691063,108400.0,108390.0,0.58226766]
[1748311693032,0.64791063,108400.0,108390.0,0.58326766]
[1748311693239,0.75690714,108400.0,108390.0,0.26891646]
[1748311693428,1.24060714,108400.0,108390.0,0.45338766]
[1748311694035,0.59351063,108400.0,108390.0,0.45350766]
[1748311694242,0.64791063,108400.0,108390.0,0.45338766]
[1748311694630,1.00871063,108400.0,108390.0,0.45350766]
[1748311694834,1.07141063,108400.0,108390.0,0.45350766]
[1748311695029,0.71061063,108400.0,108390.0,0.45350766]
[1748311695242,1.07141063,108400.0,108390.0,0.45350766]
[1748311695642,0.64795063,108400.0,108390.0,0.45350766]
[1748311695837,0.64795063,108400.0,108390.0,0.56350766]
[1748311696037,0.64795063,108400.0,108390.0,0.55350766]
[1748311697242,0.23271063,108400.0,108390.0,0.55326766]
[1748311697442,0.64795063,108400.0,108390.0,0.55326766]
[1748311697645,0.23271063,108400.0,108390.0,0.38839321]
[1748311697844,0.64795063,108400.0,108390.0,0.38851321]
[1748311698237,0.00213653,108400.0,108390.0,0.95056572]
[1748311698542,0.41624,108400.0,108390.0,0.95056572]
[1748311699446,0.00539182,108400.0,108390.0,1.36036572]
[1748311699843,0.00539182,108400.0,108390.0,1.36427781]
[1748311700249,0.00539182,108400.0,108390.0,1.61427781]
[1748311700851,0.00539182,108400.0,108390.0,1.6460826]
[1748311701149,0.00539182,108400.0,108390.0,1.3960826]
[1748311702248,0.00539182,108400.0,108390.0,1.3959626]
[1748311702850,0.00539182,108400.0,108390.0,1.3960826]
[1748311703537,0.00539182,108400.0,108390.0,1.3999727]
[1748311703842,0.00539182,108400.0,108390.0,1.50896921]
[1748311704438,0.00539182,108400.0,108390.0,1.29097619]
[1748311704642,0.00539182,108400.0,108390.0,1.3999727]
[1748311704845,0.00539182,108400.0,108390.0,1.39476791]
[1748311705250,0.07079182,108400.0,108390.0,1.44550791]
[1748311705449,0.25524602,108400.0,108390.0,1.35325191]
[1748311705650,0.31954602,108400.0,108390.0,1.2442554]
[1748311705950,0.31954602,108400.0,108390.0,0.8207554]
[1748311706347,0.42854253,108400.0,108390.0,0.7207554]
[1748311706556,0.78934253,108400.0,108390.0,0.3470554]
[1748311706749,0.85404253,108400.0,108390.0,0.3470554]
[1748311706950,0.85404253,108400.0,108390.0,0.3471754]
[1748311707851,0.85404253,108400.0,108390.0,0.33937321]
[1748311708056,0.68034602,108400.0,108390.0,0.45226569]
[1748311708262,0.13509182,108400.0,108390.0,0.97716569]
[1748311708467,0.48599182,108400.0,108390.0,0.97716569]
[1748311708758,0.4816,108400.0,108390.0,0.97716569]
[1748311709261,0.547,108400.0,108390.0,0.97716569]
[1748311709455,0.547,108400.0,108390.0,0.98236263]
[1748311709656,0.55139182,108400.0,108390.0,0.98236263]
[1748311710462,0.13619182,108400.0,108390.0,0.98236263]
[1748311710662,0.07079182,108400.0,108390.0,0.98236263]
[1748311710863,0.48599182,108400.0,108390.0,0.97846666]
[1748311711060,0.07079182,108400.0,108390.0,1.29846666]
[1748311711259,0.07079182,108400.0,108390.0,1.44746317]
[1748311711461,0.07079182,108400.0,108390.0,1.08746317]
[1748311711660,0.06590879,108410.0,108400.0,0.1844542]
[1748311711857,5e-08,108410.0,108400.0,1.74495199]
[1748311712072,5e-08,108410.0,108400.0,1.85469999]
[1748311712860,5e-08,108410.0,108400.0,1.86514114]
[1748311713060,0.00100005,108410.0,108400.0,1.87419491]
[1748311713263,0.00200005,108410.0,108400.0,1.87519491]
[1748311713868,0.00100005,108410.0,108400.0,1.87519491]
[1748311714069,0.00100005,108410.0,108400.0,1.87719491]
[1748311714380,3e-08,108420.0,108410.0,0.1844372]
[1748311714667,3e-08,108420.0,108410.0,1.35767371]
[1748311714867,3e-08,108420.0,108410.0,1.35804435]
[1748311715069,0.12906,108430.0,108420.0,0.1844202]
[1748311715266,0.12906,108430.0,108420.0,1.44164735]
[1748311715868,0.12906,108430.0,108420.0,1.45073951]
[1748311716771,0.12906,108430.0,108420.0,1.45173951]
[1748311716972,0.13006,108430.0,108420.0,1.45173951]
[1748311717159,0.13006,108430.0,108420.0,1.43523951]
[1748311717464,0.13106,108430.0,108420.0,1.43523951]
[1748311717669,0.13006,108430.0,108420.0,1.43523951]
[1748311718271,0.13006,108430.0,108420.0,1.44895492]
[1748311718671,0.19596,108430.0,108420.0,1.44895492]
[1748311719270,0.13006,108430.0,108420.0,1.44895492]
[1748311719473,0.13006,108430.0,108420.0,1.46645492]
[1748311719963,0.13006,108430.0,108420.0,1.46516101]
[1748311721166,0.13006,108430.0,108420.0,1.84516101]
[1748311721770,0.13445182,108430.0,108420.0,1.46516101]
[1748311721970,0.13457182,108430.0,108420.0,1.57415752]
[1748311722271,0.13457182,108430.0,108420.0,1.57437435]
[1748311722470,0.13445182,108430.0,108420.0,1.46537784]
[1748311722674,0.13457182,108430.0,108420.0,1.46537784]
[1748311722858,0.13457182,108430.0,108420.0,1.82537784]
[1748311723062,0.13457182,108430.0,108420.0,1.93437435]
[1748311723474,0.13457182,108430.0,108420.0,2.29517435]
[1748311723872,0.13018,108430.0,108420.0,2.29517435]
[1748311724375,0.13018,108430.0,108420.0,2.30035294]
[1748311725075,0.13018,108430.0,108420.0,1.81385643]
[1748311725877,0.13018,108430.0,108420.0,1.80605818]
[1748311727078,0.13018,108430.0,108420.0,1.81385643]
[1748311728981,0.19807182,108430.0,108420.0,1.81385643]
[1748311729975,0.19368,108430.0,108420.0,1.70405643]
[1748311730772,0.19368,108430.0,108420.0,1.74775643]
[1748311731374,0.19368,108430.0,108420.0,1.76525643]
[1748311731573,0.13018,108430.0,108420.0,1.87425294]
[1748311731774,0.13018,108430.0,108420.0,1.92497294]
[1748311733282,0.13018,108430.0,108420.0,2.29497294]
[1748311733478,0.13018,108430.0,108420.0,1.92497294]
[1748311733977,0.13018,108430.0,108420.0,1.91979435]
[1748311734279,0.06612,108430.0,108420.0,1.91979435]
[1748311734484,0.0661223,108440.0,108430.0,0.1844031]
[1748311734785,0.0661223,108440.0,108430.0,1.02739961]
[1748311734972,0.0661223,108440.0,108430.0,1.02777025]
[1748311735175,0.06485815,108440.0,108430.0,1.02777025]
[1748311735376,0.06473815,108440.0,108430.0,1.03165773]
[1748311735577,0.06573815,108440.0,108430.0,1.03165773]
[1748311735778,0.06585815,108440.0,108430.0,1.03265773]
[1748311736286,0.06585815,108440.0,108430.0,0.95315773]
[1748311736581,0.06585815,108440.0,108430.0,1.06775773]
[1748311736788,0.06485815,108440.0,108430.0,1.06775773]
[1748311737883,0.18845815,108440.0,108430.0,1.06675773]
[1748311738079,0.18945815,108440.0,108430.0,1.07494319]
[1748311739489,0.18945815,108440.0,108430.0,1.07885396]
[1748311739989,0.18945815,108440.0,108430.0,0.96985745]
[1748311740192,0.18945815,108440.0,108430.0,1.07885396]
[1748311740792,0.18945815,108440.0,108430.0,0.96425396]
[1748311741295,0.18945815,108440.0,108430.0,0.9590685]
[1748311741694,0.18945815,108440.0,108430.0,0.85007199]
[1748311742003,0.18945815,108440.0,108430.0,0.9590685]
[1748311742691,0.18945815,108440.0,108430.0,1.3190685]
[1748311742993,0.18933815,108440.0,108430.0,1.3819685]
[1748311743183,0.18945815,108440.0,108430.0,1.3819685]
[1748311744387,0.18945815,108440.0,108430.0,1.0219685]
[1748311744793,0.18945815,108440.0,108430.0,1.02233914]
[1748311744994,0.18945815,108440.0,108430.0,1.02498204]
[1748311745195,0.19384997,108440.0,108430.0,1.02498204]
[1748311745493,0.19384997,108440.0,108430.0,1.18308553]
[1748311745686,0.19384997,108440.0,108430.0,0.91838204]
[1748311745886,0.19384997,108440.0,108430.0,0.91850204]
[1748311746395,0.84803248,108440.0,108430.0,0.44870553]
[1748311746591,0.37823597,108440.0,108430.0,0.44870553]
[1748311747093,0.37823597,108440.0,108430.0,0.44858553]
[1748311747293,0.37823597,108440.0,108430.0,0.44870553]
[1748311748100,0.37823597,108440.0,108430.0,0.45126213]
[1748311751096,0.37823597,108440.0,108430.0,0.44346209]
[1748311752387,0.37823597,108440.0,108430.0,0.45126213]
[1748311753190,0.78888415,108440.0,108430.0,0.45126213]
[1748311754398,0.79327597,108440.0,108430.0,0.45126213]
[1748311756703,0.90227248,108440.0,108430.0,0.45126213]
[1748311757401,0.90227248,108440.0,108430.0,0.45114213]
[1748311757601,0.90227248,108440.0,108430.0,0.45126213]
[1748311759000,0.90227248,108440.0,108430.0,0.26685903]
[1748311759297,1.26307248,108440.0,108430.0,0.14685903]
[1748311759497,1.67163248,108440.0,108430.0,0.145453]
[1748311759794,1.67163248,108440.0,108430.0,0.13777296]
[1748311760195,2.01385248,108440.0,108430.0,0.13777296]
[1748311761206,2.07134522,108440.0,108430.0,0.13386128]
[1748311761700,2.07134522,108440.0,108430.0,0.13374128]
[1748311761900,2.07134522,108440.0,108430.0,0.13386128]
[1748311762095,2.07134522,108440.0,108430.0,0.13374128]
[1748311762296,2.07134522,108440.0,108430.0,0.13386128]
[1748311767297,0.184403,108430.0,108420.0,0.00021683]
[1748311767505,0.76889951,108430.0,108420.0,0.11021683]
[1748311767709,0.86112751,108430.0,108420.0,0.11021683]
[1748311768013,0.87019958,108430.0,108420.0,0.11021683]
[1748311768306,0.87019958,108430.0,108420.0,0.11221683]
[1748311768511,1.01120307,108430.0,108420.0,0.11221683]
[1748311768700,1.12019958,108430.0,108420.0,0.11221683]
[1748311768902,1.12019958,108430.0,108420.0,0.11233683]
[1748311769209,1.12119958,108430.0,108420.0,0.11433683]
[1748311769411,0.77897158,108430.0,108420.0,0.11433683]
[1748311769609,1.19409158,108430.0,108420.0,0.11433683]
[1748311769909,0.18442,108420.0,108410.0,0.20840344]
[1748311770108,1.24221651,108420.0,108410.0,0.32840344]
[1748311770509,1.24221651,108420.0,108410.0,0.38700344]
[1748311771603,1.24521651,108420.0,108410.0,0.38700344]
[1748311772204,1.24821651,108420.0,108410.0,0.38700344]
[1748311772806,1.24821651,108420.0,108410.0,0.74780344]
[1748311772807,0.1241,108420.0,108410.0,0.74780344]
[1748311773006,0.7236802,108420.0,108410.0,0.97679995]
[1748311773201,0.7236802,108420.0,108410.0,1.03789995]
[1748311774005,0.0672,108420.0,108410.0,1.03789995]
[1748311774206,0.48236,108420.0,108410.0,1.04181163]
[1748311774604,0.54376,108420.0,108410.0,1.04181163]
[1748311775206,0.54376,108420.0,108410.0,1.04700934]
[1748311776914,0.54372,108420.0,108410.0,1.0508977]
[1748311777508,0.006,108420.0,108410.0,1.0508977]
[1748311777811,0.42112,108420.0,108410.0,1.4108977]
[1748311778006,0.42112,108420.0,108410.0,1.0508977]
[1748311780116,0.6055402,108420.0,108410.0,1.04569999]
[1748311780308,0.48022,108420.0,108410.0,1.04569999]
[1748311780508,0.66903192,108420.0,108410.0,1.04569999]
[1748311780708,0.25391192,108420.0,108410.0,1.04569999]
[1748311781008,0.66903192,108420.0,108410.0,1.04569999]
[1748311781214,0.48461182,108420.0,108410.0,1.04569999]
[1748311782609,0.48022,108420.0,108410.0,1.04569999]
[1748311782817,0.48022,108420.0,108410.0,1.09223714]
[1748311783414,0.54192,108420.0,108410.0,1.09223714]
[1748311785716,0.54631182,108420.0,108410.0,1.09223714]
[1748311786817,0.54631182,108420.0,108410.0,1.14296714]
[1748311791718,0.54192,108420.0,108410.0,1.14296714]
[1748311792526,0.48022,108420.0,108410.0,1.14296714]
[1748311793726,0.48022,108420.0,108410.0,1.09642999]
[1748311794918,0.0651,108420.0,108410.0,1.09642999]
[1748311795121,0.48022,108420.0,108410.0,1.09642999]
[1748311795432,0.53892,108420.0,108410.0,1.09642999]
[1748311795732,0.53892,108420.0,108410.0,1.0990711]
[1748311797924,0.006,108420.0,108410.0,1.0990711]
[1748311798333,0.006,108420.0,108410.0,1.4090711]
[1748311798821,0.0618,108420.0,108410.0,1.4090711]
[1748311800533,0.0618,108420.0,108410.0,1.5090584]
[1748311801328,0.0618,108420.0,108410.0,1.09006189]
[1748311801630,0.1206,108420.0,108410.0,1.1990584]
[1748311804132,0.1206,108420.0,108410.0,1.14586634]
[1748311804333,0.1206,108420.0,108410.0,1.13542519]
[1748311806033,0.1206,108420.0,108410.0,1.14909448]
[1748311807834,0.1206,108420.0,108410.0,1.50989448]
[1748311809035,0.1785,108420.0,108410.0,1.50989448]
[1748311809541,0.1785,108420.0,108410.0,0.78829448]
[1748311809730,0.1785,108420.0,108410.0,1.50989448]
[1748311811134,0.1785,108420.0,108410.0,1.44879448]
[1748311811432,0.1785,108420.0,108410.0,1.44891448]
[1748311812034,0.18289182,108420.0,108410.0,1.44891448]
[1748311812235,0.18289182,108420.0,108410.0,1.50220891]
[1748311814835,0.18289182,108420.0,108410.0,0.78060891]
[1748311815039,0.18289182,108420.0,108410.0,1.14140891]
[1748311816035,0.18289182,108420.0,108410.0,1.08268891]
[1748311816239,0.18289182,108420.0,108410.0,1.09319489]
[1748311816545,0.18289182,108420.0,108410.0,1.14689388]
[1748311816746,0.18289182,108420.0,108410.0,1.14701388]
[1748311816929,0.18289182,108420.0,108410.0,1.14689388]
[1748311817125,0.18289182,108420.0,108410.0,1.19774388]
[1748311818630,0.18289182,108420.0,108410.0,1.08874737]
[1748311818940,0.18289182,108420.0,108410.0,1.19774388]
[1748311820439,0.18289182,108420.0,108410.0,0.99322522]
[1748311822342,0.18289182,108420.0,108410.0,0.97955593]
[1748311823144,0.18289182,108420.0,108410.0,1.04075593]
[1748311823340,0.18289182,108420.0,108410.0,0.61875593]
[1748311823546,0.18289182,108420.0,108410.0,0.97955593]
[1748311825136,0.83710833,108420.0,108410.0,0.30135598]
[1748311825339,0.83710833,108420.0,108410.0,0.36579298]
[1748311825548,0.83710833,108420.0,108410.0,0.31494298]
[1748311825847,0.83710833,108420.0,108410.0,0.31506298]
[1748311826051,0.94600144,108420.0,108410.0,0.31506298]
[1748311826534,0.94600144,108420.0,108410.0,0.30979438]
[1748311827947,0.83705914,108420.0,108410.0,0.30979438]
[1748311828146,0.83705914,108420.0,108410.0,0.31371933]
[1748311833351,0.83705914,108420.0,108410.0,0.30848195]
[1748311839548,0.8464602,108420.0,108410.0,0.30848195]
[1748311839755,1.2616202,108420.0,108410.0,0.30848195]
[1748311841752,0.8464602,108420.0,108410.0,0.30848195]
[1748311841956,1.2616202,108420.0,108410.0,0.30848195]
[1748311847960,1.37054786,108420.0,108410.0,0.30848195]
[1748311849961,0.9459868,108420.0,108410.0,0.30848195]
[1748311850266,1.3611468,108420.0,108410.0,0.30848195]
[1748311851265,1.3611468,108420.0,108410.0,0.36378195]
[1748311851867,1.3611468,108420.0,108410.0,0.36901933]
[1748311853069,1.25220931,108420.0,108410.0,0.36901933]
[1748311853674,1.37032035,108420.0,108410.0,0.12928233]
[1748311853866,1.37032035,108420.0,108410.0,0.12916233]
[1748311854167,1.37032035,108420.0,108410.0,0.12928233]
[1748311854670,1.51347144,108420.0,108410.0,0.12404495]
[1748311857072,1.62240893,108420.0,108410.0,0.12404495]
[1748311857463,1.51347144,108420.0,108410.0,0.12392495]
[1748311857664,1.51347144,108420.0,108410.0,0.12012]
[1748311857866,1.51347144,108420.0,108410.0,0.12]
[1748311858169,1.51347144,108420.0,108410.0,0.12012]
[1748311858972,1.4559787,108420.0,108410.0,0.12012]
[1748311859469,1.4559787,108420.0,108400.0,0.00392495]
[1748311859674,0.1844882,108380.0,108370.0,0.00888201]
[1748311859871,0.1845052,108370.0,108360.0,0.03274295]
[1748311860072,0.82881333,108370.0,108360.0,0.04274295]
[1748311860276,0.82906156,108370.0,108360.0,0.03274295]
[1748311860575,0.82906156,108370.0,108360.0,0.17286295]
[1748311860770,0.93799905,108370.0,108360.0,0.03286295]
[1748311860976,0.93799905,108370.0,108360.0,0.03274295]
[1748311861175,0.93799905,108370.0,108360.0,0.00108045]
[1748311861472,0.94905627,108370.0,108360.0,0.00108045]
[1748311861776,1.03471462,108370.0,108360.0,0.00012]
[1748311861974,0.1845393,108350.0,108340.0,0.11198206]
[1748311862175,1.47759485,108350.0,108340.0,0.24161142]
[1748311862377,1.64774308,108350.0,108340.0,0.24161142]
[1748311863672,1.64874308,108350.0,108340.0,0.24161142]
[1748311864278,1.28794308,108350.0,108340.0,0.24161142]
[1748311864577,1.64874308,108350.0,108340.0,0.24361142]
[1748311864779,1.64874308,108350.0,108340.0,0.18491142]
[1748311864979,1.64874308,108350.0,108340.0,0.18503142]
[1748311865377,1.64874308,108350.0,108340.0,0.38238121]
[1748311865679,1.12147945,108350.0,108340.0,0.38816979]
[1748311865875,1.23054308,108350.0,108340.0,0.4918763]
[1748311866081,1.59134308,108350.0,108340.0,0.4918763]
[1748311866275,1.59138308,108350.0,108340.0,0.4918763]
[1748311866476,0.76906308,108350.0,108340.0,0.4918763]
[1748311866774,1.59138308,108350.0,108340.0,0.4918763]